fUSD/lending_fUSD_20260401
["ID","MTS","AMOUNT","RATE_DAILY","PERIOD"]
[419247481,1775046641644,-500.0,0.00013699,2]
[419247482,1775046641654,-264.52314394,0.00013699,2]
[419247483,1775046641663,-500.0,0.00013699,2]
[419247484,1775046641674,-500.0,0.00013699,2]
[419247485,1775046641683,-342.86927072,0.00013699,2]
[419247486,1775046641693,-500.0,0.00013699,2]
[419247487,1775046641702,-500.0,0.00013699,2]
[419247488,1775046641711,-7346.78,0.00013699,2]
[419247489,1775046641720,-157.6058664,0.00013699,2]
[419247490,1775046641729,-460.91255479,0.00013699,2]
[419247491,1775046641738,-177.16,0.000137,2]
[419247492,1775046641747,-177.16,0.000137,2]
[419247493,1775046641756,-177.16,0.000137,2]
[419247494,1775046641765,-177.16,0.000137,2]
[419247495,1775046641774,-177.16,0.000137,2]
[419247496,1775046641783,-287.12,0.00013802,2]
[419247497,1775046641793,-587.0,0.00013964,2]
[419247498,1775046641801,-18304.4458893,0.00014031,2]
[419247499,1775046641810,-9712.05142204,0.00014088,2]
[419247500,1775046641820,-1316.83151931,0.0001411,2]
[419247501,1775046641832,-732.9543691,0.00014201,2]
[419247502,1775046641841,-3240.0,0.00014228,2]
[419247503,1775046641850,-334.213007,0.00014241,2]
[419247504,1775046641859,-211.690696,0.00014241,7]
[419247505,1775046642195,-290.713115,0.00014241,7]
[419247506,1775046642204,-259.268273,0.00014241,2]
[419247507,1775046642214,-1000.0,0.00014247,2]
[419247508,1775046642223,-298.21038318,0.00014247,2]
[419247509,1775046642232,-1000.0,0.00014247,2]
[419247510,1775046642241,-367.40868416,0.00014247,2]
[419247511,1775046642251,-9340.04,0.00014258,2]
[419247512,1775046642260,-220.09,0.00014288,30]
[419247513,1775046642268,-246.2959,0.000143,12]
[419247514,1775046642278,-624.0,0.00014326,5]
[419247515,1775046642287,-816.0,0.00014326,5]
[419247516,1775046642296,-785.2,0.00014384,2]
[419247517,1775046642306,-287.12,0.0001443,2]
[419247518,1775046642315,-173.3840015,0.00014432,2]
[419247519,1775046642324,-160.0,0.00014484,7]
[419247520,1775046642334,-627.359836,0.00014484,7]
[419247521,1775046642343,-1094.719672,0.00014484,7]
[419247522,1775046642352,-224.788336,0.00014484,2]
[419247523,1775046642362,-18304.4458893,0.00014498,2]
[419247524,1775046642371,-2000.0,0.000145,2]
[419247525,1775046642381,-500.0,0.00014531,9]
[419247526,1775046642390,-672.00857251,0.00014531,2]
[419247527,1775046642399,-337952.3103829,0.00014532,2]
[419247528,1775046642408,-938.252203,0.00014532,2]
[419247529,1775046642417,-32028.1850054,0.00014532,2]
[419247530,1775046642425,-310366.8819367,0.00014532,2]
[419247531,1775046642435,-22708.9285807,0.00014532,2]
[419247532,1775046642444,-289.52458,0.00014532,2]
[419247533,1775046642454,-289.52458,0.00014532,2]
[419247534,1775046642463,-151.0,0.00014532,2]
[419247535,1775046642471,-289.52458,0.00014532,2]
[419247536,1775046642481,-151.0,0.00014532,2]
[419247537,1775046642490,-289.52458,0.00014532,2]
[419247538,1775046642500,-151.0,0.00014532,2]
[419247539,1775046642510,-151.0,0.00014532,2]
[419247540,1775046642519,-151.0,0.00014532,2]
[419247541,1775046642528,-151.0,0.00014532,2]
[419247542,1775046642538,-323.489604,0.00014532,2]
[419247543,1775046642548,-323.489604,0.00014532,2]
[419247544,1775046642557,-323.489604,0.00014532,2]
[419247545,1775046642567,-323.489604,0.00014532,2]
[419247546,1775046642578,-613762.0237431,0.00014532,2]
[419247547,1775046642588,-151.0,0.00014532,2]
[419247548,1775046642597,-151.0,0.00014532,2]
[419247549,1775046642607,-151.0,0.00014532,2]
[419247550,1775046642616,-151.0,0.00014532,2]
[419247551,1775046642626,-151.0,0.00014532,2]
[419247552,1775046642635,-151.0,0.00014532,2]
[419247553,1775046642644,-151.0,0.00014532,2]
[419247554,1775046642654,-151.0,0.00014532,2]
[419247555,1775046642663,-238.189491,0.00014532,2]
[419247556,1775046642672,-151.0,0.00014532,2]
[419247557,1775046642681,-151.0,0.00014532,2]
[419247558,1775046642690,-151.0,0.00014532,2]
[419247559,1775046642699,-151.0,0.00014532,2]
[419247560,1775046642708,-45520.4151925,0.00014532,2]
[419247561,1775046642717,-1316.83151931,0.00014558,2]
[419247562,1775046642727,-500.0,0.00014573,2]
[419247563,1775046642735,-312.57026801,0.00014573,2]
[419247564,1775046642744,-509.88873086,0.00014573,2]
[419247565,1775046642754,-500.0,0.00014625,10]
[419247566,1775046642763,-1145.80866313,0.00014626,2]
[419247567,1775046642772,-1122.756868,0.00014626,2]
[419247568,1775046642782,-1012.40938343,0.00014626,2]
[419247569,1775046642791,-1070.34616321,0.00014626,2]
[419247570,1775046642800,-1060.33692328,0.00014626,2]
[419247571,1775046642810,-1124.04682603,0.00014626,2]
[419247572,1775046642819,-1047.60099645,0.00014626,2]
[419247573,1775046642829,-1072.6129064,0.00014626,2]
[419247574,1775046642838,-1083.30738601,0.00014626,2]
[419247576,1775046642848,-1027.11686733,0.00014626,2]
[419247578,1775046642857,-1086.82432467,0.00014626,2]
[419247580,1775046642866,-1020.9305758,0.00014626,2]
[419247581,1775046642875,-1092.18748616,0.00014626,2]
[419247582,1775046642884,-1007.80455167,0.00014626,2]
[419247583,1775046642895,-1028.9132756,0.00014626,2]
[419247584,1775046642904,-1103.79349419,0.00014626,2]
[419247585,1775046642913,-1018.39023781,0.00014626,2]
[419247587,1775046642922,-1140.69085843,0.00014626,2]
[419247588,1775046642931,-1035.04484528,0.00014626,2]
[419247589,1775046642941,-1122.16259214,0.00014626,2]
[419247590,1775046642950,-1189.16226876,0.00014626,2]
[419247591,1775046642959,-160.0,0.00014626,7]
[419247592,1775046642969,-408.887898,0.00014626,7]
[419247593,1775046642979,-657.775796,0.00014626,7]
[419247594,1775046642989,-785.2,0.00014658,2]
[419247595,1775046642998,-500.0,0.00014662,2]
[419247596,1775046643007,-152.5578191,0.00014662,2]
[419247597,1775046643017,-151.0,0.0001468,2]
[419247598,1775046643026,-151.0,0.0001468,2]
[419247599,1775046643036,-151.0,0.0001468,2]
[419247600,1775046643046,-6266.32810745,0.0001468,2]
[419247601,1775046643057,-500.0,0.00014684,2]
[419247602,1775046643066,-9712.05142204,0.00014692,2]
[419247603,1775046643076,-289.766214,0.000147,2]
[419247604,1775046643087,-338.91999275,0.00014715,2]
[419247605,1775046643097,-338.91999275,0.00014715,2]
[419247606,1775046643107,-250.0,0.00014752,2]
[419247607,1775046643118,-128106.53871111,0.0001478,2]
[419247608,1775046643128,-289.52458,0.0001478,2]
[419247609,1775046643138,-289.52458,0.0001478,2]
[419247610,1775046643149,-151.0,0.0001478,2]
[419247611,1775046643159,-289.52458,0.0001478,2]
[419247612,1775046643169,-151.0,0.0001478,2]
[419247613,1775046643179,-289.52458,0.0001478,2]
[419247614,1775046643190,-151.0,0.0001478,2]
[419247615,1775046643200,-151.0,0.0001478,2]
[419247617,1775046643210,-151.0,0.0001478,2]
[419247619,1775046643220,-151.0,0.0001478,2]
[419247621,1775046643230,-323.489604,0.0001478,2]
[419247622,1775046643240,-323.489604,0.0001478,2]
[419247623,1775046643250,-323.489604,0.0001478,2]
[419247624,1775046643260,-323.489604,0.0001478,2]
[419247625,1775046643270,-1500.0,0.00014795,2]
[419247626,1775046643279,-379.93134742,0.00014795,2]
[419247627,1775046643288,-500.0,0.00014877,2]
[419247628,1775046643298,-200.0,0.00014924,2]
[419247629,1775046643307,-301.94822104,0.00014924,2]
[419247630,1775046643316,-200.0,0.00014924,2]
[419247631,1775046643327,-200.0,0.00014924,2]
[419247632,1775046643338,-300.0,0.00014924,2]
[419247633,1775046643348,-152.0,0.00014924,2]
[419247634,1775046643358,-152.0,0.00014924,2]
[419247635,1775046643367,-152.0,0.00014924,2]
[419247636,1775046643376,-152.0,0.00014924,2]
[419247637,1775046643386,-153.0,0.00014924,2]
[419247638,1775046643396,-153.0,0.00014924,2]
[419247639,1775046643405,-152.0,0.00014924,2]
[419247640,1775046643414,-244.18218829,0.00014924,2]
[419247641,1775046643424,-152.0,0.00014924,2]
[419247642,1775046643434,-228.00689511,0.00014924,2]
[419247643,1775046643444,-1524.0,0.00014924,2]
[419247644,1775046643454,-1524.0,0.00014924,2]
[419247645,1775046643465,-1524.0,0.00014924,2]
[419247646,1775046643475,-1524.0,0.00014924,2]
[419247647,1775046643486,-1524.0,0.00014924,2]
[419247648,1775046643495,-1524.0,0.00014924,2]
[419247649,1775046643504,-1524.0,0.00014924,2]
[419247650,1775046643514,-1524.0,0.00014924,2]
[419247651,1775046643523,-1524.0,0.00014924,2]
[419247652,1775046643532,-1524.0,0.00014924,2]
[419247653,1775046643542,-1524.0,0.00014924,2]
[419247654,1775046643552,-1524.0,0.00014924,2]
[419247655,1775046643562,-1524.0,0.00014924,2]
[419247656,1775046643573,-1524.0,0.00014924,2]
[419247657,1775046643583,-1524.0,0.00014924,2]
[419247658,1775046643593,-1524.0,0.00014924,2]
[419247659,1775046643603,-1524.0,0.00014924,2]
[419247660,1775046643613,-1524.0,0.00014924,2]
[419247661,1775046643622,-1524.0,0.00014924,2]
[419247662,1775046643634,-1524.0,0.00014924,2]
[419247663,1775046643644,-1524.0,0.00014924,2]
[419247664,1775046643654,-1524.0,0.00014924,2]
[419247665,1775046643664,-1524.0,0.00014924,2]
[419247666,1775046643675,-1524.0,0.00014924,2]
[419247667,1775046643684,-1524.0,0.00014924,2]
[419247668,1775046643693,-1524.0,0.00014924,2]
[419247669,1775046643703,-1524.0,0.00014924,2]
[419247671,1775046643712,-1524.0,0.00014924,2]
[419247673,1775046643722,-1524.0,0.00014924,2]
[419247675,1775046643731,-1524.0,0.00014924,2]
[419247676,1775046643740,-1524.0,0.00014924,2]
[419247678,1775046643749,-1524.0,0.00014924,2]
[419247680,1775046643759,-1524.0,0.00014924,2]
[419247682,1775046643768,-1524.0,0.00014924,2]
[419247684,1775046643777,-1524.0,0.00014924,2]
[419247685,1775046643786,-1524.0,0.00014924,2]
[419247686,1775046643796,-1524.0,0.00014924,2]
[419247687,1775046643805,-1524.0,0.00014924,2]
[419247688,1775046643815,-1524.0,0.00014924,2]
[419247689,1775046643824,-1524.0,0.00014924,2]
[419247690,1775046643834,-1154.02182999,0.00014924,2]
[419247691,1775046643844,-200.0,0.00014924,2]
[419247692,1775046643853,-161.0,0.00014924,2]
[419247693,1775046643863,-205.95837428,0.00014924,2]
[419247694,1775046643873,-206.04,0.00014932,2]
[419247695,1775046643882,-1600.0,0.00014945,2]
[419247696,1775046643891,-18304.4458893,0.00014966,2]
[419247697,1775046643901,-224.28659877,0.00014973,2]
[419247698,1775046643911,-14193.25412751,0.00015,7]
[419247699,1775046643921,-160.0,0.00015,2]
[419247700,1775046643930,-300.0,0.00015,2]
[419247701,1775046643941,-1316.83151931,0.00015005,2]
[419247702,1775046643950,-4306.33,0.00015057,2]
[419247703,1775046643960,-2140.1,0.00015057,2]
[419247704,1775046643971,-287.12,0.00015057,2]
[419247705,1775046643981,-160.0,0.00015062,2]
[419247706,1775046643990,-160.0,0.00015062,2]
[419247707,1775046644001,-1679.68,0.00015068,2]
[419247708,1775046644011,-267.94,0.00015068,2]
[419247709,1775046644021,-200.0,0.00015073,2]
[419247710,1775046644031,-200.0,0.00015073,2]
[419247711,1775046644041,-200.0,0.00015073,2]
[419247712,1775046644051,-200.0,0.00015073,2]
[419247713,1775046644061,-418.0,0.00015108,2]
[419247714,1775046644071,-500.0,0.0001513,2]
[419247715,1775046644082,-578.20924308,0.00015131,2]
[419247716,1775046644092,-201.93286099,0.00015131,2]
[419247717,1775046644102,-9211.34798985,0.00015131,2]
[419247718,1775046644111,-500.0,0.00015131,2]
[419247719,1775046644120,-500.0,0.00015131,2]
[419247720,1775046644129,-500.0,0.00015131,2]
[419247721,1775046644139,-500.0,0.00015131,2]
[419247722,1775046644148,-500.0,0.00015131,2]
[419247723,1775046644158,-500.0,0.00015131,2]
[419247724,1775046644168,-500.0,0.00015131,2]
[419247725,1775046644177,-500.0,0.00015131,2]
[419247726,1775046644187,-500.0,0.00015131,2]
[419247727,1775046644196,-1377.42282659,0.00015131,2]
[419247728,1775046644205,-500.0,0.00015131,2]
[419247729,1775046644214,-200.0,0.00015131,2]
[419247730,1775046644223,-500.0,0.00015131,2]
[419247731,1775046644232,-500.0,0.00015131,2]
[419247732,1775046644242,-151.0,0.00015131,2]
[419247733,1775046644251,-500.0,0.00015131,2]
[419247734,1775046644259,-500.0,0.00015131,2]
[419247735,1775046644269,-500.0,0.00015131,2]
[419247736,1775046644278,-500.0,0.00015131,2]
[419247737,1775046644287,-500.0,0.00015131,2]
[419247738,1775046644296,-500.0,0.00015131,2]
[419247739,1775046644305,-500.0,0.00015131,2]
[419247740,1775046644314,-500.0,0.00015131,2]
[419247741,1775046644324,-500.0,0.00015131,2]
[419247742,1775046644333,-500.0,0.00015131,2]
[419247743,1775046644343,-500.0,0.00015131,2]
[419247744,1775046644353,-500.0,0.00015131,2]
[419247745,1775046644362,-500.0,0.00015131,2]
[419247746,1775046644371,-250.0,0.00015131,2]
[419247747,1775046644381,-250.0,0.00015131,2]
[419247748,1775046644389,-250.0,0.00015131,2]
[419247749,1775046644398,-250.0,0.00015131,2]
[419247750,1775046644407,-250.0,0.00015131,2]
[419247751,1775046644417,-500.0,0.00015131,2]
[419247752,1775046644426,-250.0,0.00015131,2]
[419247753,1775046644435,-279.9045709,0.00015131,2]
[419247754,1775046644445,-500.0,0.00015131,2]
[419247755,1775046644455,-250.0,0.00015131,2]
[419247756,1775046644464,-500.0,0.00015131,2]
[419247757,1775046644474,-250.0,0.00015131,2]
[419247758,1775046644483,-500.0,0.00015131,2]
[419247759,1775046644492,-500.0,0.00015131,2]
[419247760,1775046644502,-500.0,0.00015131,2]
[419247761,1775046644511,-500.0,0.00015131,2]
[419247762,1775046644520,-500.0,0.00015131,2]
[419247763,1775046644530,-500.0,0.00015131,2]
[419247764,1775046644539,-174.61919141,0.00015131,2]
[419247765,1775046644548,-500.0,0.00015131,2]
[419247766,1775046644558,-500.0,0.00015131,2]
[419247767,1775046644568,-500.0,0.00015131,2]
[419247768,1775046644578,-250.0,0.00015131,2]
[419247769,1775046644587,-250.0,0.00015131,2]
[419247770,1775046644596,-250.0,0.00015131,2]
[419247771,1775046644606,-250.0,0.00015131,2]
[419247772,1775046644615,-262.90206542,0.00015131,2]
[419247773,1775046644624,-743.50770149,0.00015131,2]
[419247774,1775046644633,-200.0,0.00015131,2]
[419247775,1775046644643,-500.0,0.00015131,2]
[419247776,1775046644653,-500.0,0.00015131,2]
[419247777,1775046644662,-500.0,0.00015131,2]
[419247778,1775046644672,-500.0,0.00015131,2]
[419247779,1775046644681,-500.0,0.00015131,2]
[419247780,1775046644691,-418.0,0.00015142,2]
[419247781,1775046644701,-440.17,0.0001516,30]
[419247782,1775046644710,-418.0,0.00015162,2]
[419247783,1775046644719,-9552.16786547,0.00015186,2]
[419247784,1775046644728,-151.0,0.00015186,2]
[419247785,1775046644738,-500.0,0.00015186,2]
[419247786,1775046644748,-272.62944185,0.00015186,2]
[419247787,1775046644757,-10000.0,0.00015205,2]
[419247788,1775046644767,-855.490686,0.00015209,7]
[419247789,1775046644776,-418.0,0.00015212,2]
[419247790,1775046644786,-418.0,0.00015217,2]
[419247791,1775046644795,-418.0,0.00015218,2]
[419247792,1775046644804,-200.0,0.00015224,2]
[419247793,1775046644814,-200.0,0.00015224,2]
[419247794,1775046644823,-200.0,0.00015224,2]
[419247795,1775046644833,-200.0,0.00015224,2]
[419247796,1775046644842,-350.0,0.00015227,2]
[419247797,1775046644852,-9905.5980765,0.00015241,2]
[419247798,1775046644861,-151.0,0.00015241,2]
[419247799,1775046644870,-500.0,0.00015241,2]
[419247800,1775046644880,-282.71673119,0.00015241,2]
[419247801,1775046644889,-6266.32810743,0.0001529,2]
[419247802,1775046644899,-10272.10520533,0.00015296,2]
[419247803,1775046644908,-151.0,0.00015296,2]
[419247804,1775046644917,-500.0,0.00015296,2]
[419247805,1775046644927,-293.17725025,0.00015296,2]
[419247806,1775046644936,-9712.05142204,0.00015296,2]
[419247807,1775046644947,-500.0,0.00015308,2]
[419247808,1775046644956,-418.0,0.00015321,2]
[419247809,1775046644966,-151.0,0.00015325,2]
[419247810,1775046644976,-151.0,0.00015325,2]
[419247811,1775046644985,-151.0,0.00015325,2]
[419247812,1775046644994,-151.0,0.00015325,2]
[419247813,1775046645004,-418.0,0.00015326,2]
[419247814,1775046645014,-823.0,0.00015336,2]
[419247815,1775046645023,-2000.0,0.00015342,2]
[419247816,1775046645033,-10652.17309792,0.00015351,2]
[419247817,1775046645043,-151.0,0.00015351,2]
[419247818,1775046645053,-500.0,0.00015351,2]
[419247819,1775046645062,-304.02480851,0.00015351,2]
[419247820,1775046645072,-557.574406,0.00015357,7]
[419247821,1775046645082,-418.0,0.00015368,2]
[419247822,1775046645091,-200.0,0.00015376,2]
[419247823,1775046645101,-200.0,0.00015376,2]
[419247824,1775046645110,-200.0,0.00015376,2]
[419247825,1775046645119,-200.0,0.00015376,2]
[419247826,1775046645129,-207.50421468,0.00015384,2]
[419247827,1775046645138,-500.0,0.00015405,11]
[419247828,1775046645147,-11046.30350255,0.00015406,2]
[419247829,1775046645156,-151.0,0.00015406,2]
[419247830,1775046645167,-500.0,0.00015406,2]
[419247831,1775046645177,-276.0335857,0.00015406,2]
[419247832,1775046645206,-39.24014072,0.00015406,2]
[419247833,1775046645216,-269.43847461,0.00015409,2]
[419247834,1775046645791,-148.56152539,0.00015409,2]
[419247835,1775046645801,-220.84001625,0.00015427,2]
[419247836,1775046645810,-4389.62735351,0.00015433,2]
[419247838,1775046646175,-3288.92277571,0.00015433,2]
[419247839,1775046646331,-10625.89576008,0.00015433,2]
[419247840,1775046646340,-1316.83151931,0.00015453,2]
[419247841,1775046646349,-11455.01673214,0.00015461,2]
[419247842,1775046646358,-151.0,0.00015461,2]
[419247843,1775046646367,-500.0,0.00015461,2]
[419247844,1775046646376,-326.9388543,0.00015461,2]
[419247845,1775046646385,-151.0,0.00015461,2]
[419247846,1775046646397,-250.860871,0.00015461,2]
[419247847,1775046646410,-170.10171981,0.00015465,2]
[419247848,1775046646422,-2740.783,0.00015493,2]
[419247849,1775046646435,-171.825,0.00015493,2]
[419247850,1775046646447,-453.65,0.00015507,2]
[419247851,1775046646458,-10360.54119594,0.00015516,2]
[419247852,1775046646471,-1518.31115529,0.00015516,2]
[419247853,1775046646484,-151.0,0.00015516,2]
[419247854,1775046646496,-500.0,0.00015516,2]
[419247855,1775046646509,-339.03559191,0.00015516,2]
[419247856,1775046646521,-10.43218708,0.00015522,2]
[419247857,1775046646536,-407.56781292,0.00015522,2]
[419247858,1775046646548,-92.43218708,0.00015528,2]
[419247859,1775046646564,-407.56781292,0.00015528,2]
[419247860,1775046646577,-200.0,0.0001553,2]
[419247861,1775046646589,-120.90031559,0.0001553,2]
[419247862,1775046646611,-79.09968441,0.0001553,2]
[419247864,1775046646623,-200.0,0.0001553,2]
[419247867,1775046646635,-161.29,0.00015544,2]
[419247869,1775046646648,-391.0,0.00015545,2]
[419247871,1775046646659,-161.29,0.00015551,2]
[419247873,1775046646671,-1.51444762,0.00015571,2]
[419247877,1775046646701,-164.220662,0.00014626,7]
[419247880,1775046646713,-100.27770415,0.00015571,2]
[419247882,1775046646726,-11181.07807151,0.00015571,2]
[419247883,1775046646737,-151.0,0.00015571,2]
[419247884,1775046646749,-500.0,0.00015571,2]
[419247885,1775046646760,-391.0,0.00015578,2]
[419247886,1775046646771,-150.0,0.00015616,2]
[419247887,1775046646784,-500.0,0.00015616,2]
[419247888,1775046646796,-150.0,0.00015616,2]
[419247889,1775046646808,-500.0,0.00015616,2]
[419247890,1775046646822,-150.0,0.00015616,2]
[419247891,1775046646833,-178.86340843,0.00015616,2]
[419247893,1775046646846,-500.0,0.00015616,2]
[419247894,1775046646857,-500.0,0.00015616,2]
[419247895,1775046646869,-500.0,0.00015616,2]
[419247896,1775046646881,-500.0,0.00015616,2]
[419247897,1775046646894,-192.86328768,0.00015616,2]
[419247898,1775046646905,-500.0,0.00015616,2]
[419247899,1775046646916,-500.0,0.00015616,2]
[419247900,1775046646925,-500.0,0.00015616,2]
[419247901,1775046646936,-500.0,0.00015616,2]
[419247902,1775046646946,-500.0,0.00015616,2]
[419247903,1775046646957,-500.0,0.00015616,2]
[419247904,1775046646971,-500.0,0.00015616,2]
[419247905,1775046646983,-635.85212184,0.00015616,2]
[419247906,1775046646994,-500.0,0.00015616,2]
[419247907,1775046647004,-500.0,0.00015616,2]
[419247908,1775046647016,-500.0,0.00015616,2]
[419247909,1775046647028,-500.0,0.00015616,2]
[419247910,1775046647040,-500.0,0.00015616,2]
[419247911,1775046647052,-500.0,0.00015616,2]
[419247912,1775046647064,-500.0,0.00015616,2]
[419247913,1775046647074,-359.11494659,0.00015616,2]
[419247914,1775046647087,-500.0,0.00015616,2]
[419247915,1775046647098,-150.0,0.00015616,2]
[419247916,1775046647109,-500.0,0.00015616,2]
[419247917,1775046647120,-500.0,0.00015616,2]
[419247918,1775046647131,-500.0,0.00015616,2]
[419247919,1775046647142,-500.0,0.00015616,2]
[419247920,1775046647154,-500.0,0.00015616,2]
[419247921,1775046647165,-167.18856924,0.00015616,2]
[419247922,1775046647182,-500.0,0.00015616,2]
[419247923,1775046647193,-500.0,0.00015616,2]
[419247924,1775046647204,-500.0,0.00015616,2]
[419247925,1775046647216,-500.0,0.00015616,2]
[419247926,1775046647226,-500.0,0.00015616,2]
[419247927,1775046647237,-500.0,0.00015616,2]
[419247928,1775046647248,-500.0,0.00015616,2]
[419247929,1775046647259,-500.0,0.00015616,2]
[419247930,1775046647270,-500.0,0.00015616,2]
[419247931,1775046647281,-500.0,0.00015616,2]
[419247932,1775046647291,-378.0,0.00015616,2]
[419247933,1775046647302,-150.0,0.00015616,2]
[419247934,1775046647314,-500.0,0.00015616,2]
[419247935,1775046647325,-500.0,0.00015616,2]
[419247936,1775046647336,-500.0,0.00015616,2]
[419247937,1775046647347,-500.0,0.00015616,2]
[419247938,1775046647359,-200.0,0.00015616,2]
[419247939,1775046647370,-150.0,0.00015616,2]
[419247940,1775046647381,-151.0,0.00015626,2]
[419247941,1775046647392,-500.0,0.00015626,2]
[419247942,1775046647403,-400.74,0.0001563,2]
[419247943,1775046647413,-150.0,0.0001565,2]
[419247944,1775046647424,-268.8,0.00015653,2]
[419247945,1775046647434,-1000.0,0.00015655,2]
[419247946,1775046647445,-1000.0,0.00015657,2]
[419247947,1775046647457,-1000.0,0.00015661,2]
[419247948,1775046647468,-1000.0,0.00015661,2]
[419247949,1775046647479,-209.40437684,0.00015679,2]
[419247950,1775046647489,-1428.38747117,0.00015679,2]
[419247951,1775046647500,-200.0,0.00015679,2]
[419247952,1775046647511,-290.26104003,0.00015679,2]
[419247953,1775046647522,-181.08010149,0.00015679,2]
[419247954,1775046647533,-771.01748645,0.00015679,2]
[419247955,1775046647543,-200.0,0.00015679,2]
[419247956,1775046647553,-150.0,0.0001568,2]
[419247957,1775046647564,-151.0,0.00015681,2]
[419247958,1775046647576,-500.0,0.00015681,2]
[419247959,1775046647588,-287.12,0.00015684,2]
[419247960,1775046647600,-1000.0,0.00015686,2]
[419247961,1775046647611,-150.0,0.00015697,2]
[419247962,1775046647622,-1000.0,0.00015702,2]
[419247963,1775046647632,-1000.0,0.00015705,2]
[419247964,1775046647643,-600.2013674,0.00015708,2]
[419247965,1775046647655,-1000.0,0.00015711,2]
[419247966,1775046647666,-1000.0,0.00015711,2]
[419247967,1775046647676,-391.0,0.00015714,2]
[419247968,1775046647688,-306.0,0.00015716,2]
[419247969,1775046647698,-150.0,0.0001572,2]
[419247970,1775046647709,-1000.0,0.0001572,2]
[419247971,1775046647719,-150.0,0.00015725,2]
[419247972,1775046647730,-1000.0,0.00015726,2]
[419247973,1775046647741,-150.0,0.0001573,2]
[419247974,1775046647752,-151.0,0.00015736,2]
[419247975,1775046647763,-500.0,0.00015736,2]
[419247976,1775046647774,-173.41,0.00015738,2]
[419247977,1775046647785,-1000.0,0.00015739,2]
[419247978,1775046647796,-150.0,0.0001574,2]
[419247979,1775046647807,-454.39466604,0.00015747,2]
[419247980,1775046647818,-258.69446126,0.00015747,2]
[419247981,1775046647830,-300.29805954,0.00015751,2]
[419247982,1775046647840,-306.0,0.00015753,2]
[419247983,1775046647852,-1679.68,0.00015753,2]
[419247984,1775046647864,-186.71002576,0.00015759,7]
[419247985,1775046647875,-1000.0,0.00015772,2]
[419247986,1775046647886,-1000.0,0.00015779,2]
[419247987,1775046647897,-158.95757929,0.00015781,2]
[419247988,1775046647908,-505.0,0.00015787,4]
[419247989,1775046647919,-1000.0,0.00015787,2]
[419247990,1775046647930,-258.69446126,0.00015789,2]
[419247991,1775046647941,-1000.0,0.00015791,2]
[419247992,1775046647953,-150.0,0.00015792,2]
[419247993,1775046647964,-1000.0,0.00015795,2]
[419247994,1775046647975,-150.0,0.000158,2]
[419247995,1775046647986,-2000.0,0.000158,2]
[419247996,1775046647998,-150.0,0.00015805,2]
[419247997,1775046648009,-1000.0,0.00015807,2]
[419247998,1775046648020,-1000.0,0.00015825,2]
[419247999,1775046648031,-1000.0,0.00015834,2]
[419248000,1775046648044,-1000.0,0.00015846,2]
[419248001,1775046648055,-1000.0,0.00015848,2]
[419248002,1775046648066,-150.0,0.00015854,2]
[419248003,1775046648077,-2000.0,0.00015856,2]
[419248004,1775046648088,-150.0,0.00015858,2]
[419248005,1775046648100,-391.0,0.00015869,2]
[419248006,1775046648111,-500.0,0.00015871,2]
[419248007,1775046648122,-500.0,0.00015872,2]
[419248008,1775046648133,-500.0,0.00015872,2]